bitfinex-derivatives/quotes_SOLF0:USTF0_20230105
["timestamp","ask_amount","ask_price","bid_price","bid_amount"]
[1672878334353,10.0,13.333,13.323,14.88]
[1672878334562,10.06839644,13.333,13.323,14.94362299]
[1672878334772,17.19448398,13.325,13.323,14.94362299]
[1672878335090,17.19448398,13.325,13.323,14.88]
[1672878337083,0.06333954,13.329,13.323,14.88]
[1672878338555,0.06333954,13.329,13.325,14.88]
[1672878338868,0.06333954,13.329,13.326,10.0]
[1672878339081,17.19448398,13.335,13.328,14.88]
[1672878339291,17.19448398,13.335,13.33,14.88]
[1672878343389,10.0,13.334,13.33,14.88]
[1672878343598,10.0,13.334,13.328,0.06148639]
[1672878343599,10.0,13.334,13.328,14.94148639]
[1672878343813,17.19448398,13.335,13.328,14.94148639]
[1672878344017,17.19448398,13.335,13.332,14.88]
[1672878346651,17.19448398,13.335,13.334,14.88]
[1672878348965,0.06966421,13.337,13.334,14.88]
[1672878349173,0.06931271,13.34,13.334,14.88]
[1672878349382,10.0622233,13.342,13.334,14.88]
[1672878350326,17.19448398,13.335,13.334,14.88]
[1672878350952,0.06530007,13.339,13.335,17.19]
[1672878351167,0.0604277,13.342,13.338,14.88]
[1672878351378,71.68208398,13.344,13.338,14.88]
[1672878352537,71.44766342,13.344,13.338,14.88]
[1672878354534,17.19448398,13.344,13.338,14.88]
[1672878356210,17.19448398,13.344,13.339,10.0]
[1672878356424,17.19448398,13.344,13.34,14.88]
[1672878356632,17.19448398,13.344,13.341,10.0]
[1672878357054,17.19448398,13.344,13.342,14.88]
[1672878357265,17.19448398,13.344,13.343,10.0]
[1672878358104,17.19448398,13.344,13.342,14.88]
[1672878359372,17.19448398,13.344,13.343,10.0]
[1672878360424,17.19448398,13.344,13.342,14.88]
[1672878365362,17.05532033,13.344,13.342,14.88]
[1672878368826,17.05532033,13.344,13.341,14.88]
[1672878372399,17.05532033,13.344,13.343,14.88]
[1672878376077,17.05532033,13.344,13.341,14.88]
[1672878379237,16.91273896,13.344,13.341,14.88]
[1672878381543,10.0,13.343,13.338,0.0683797]
[1672878381758,10.0,13.343,13.334,14.88]
[1672878382701,16.91273896,13.335,13.332,14.88]
[1672878383116,16.91273896,13.335,13.333,10.0]
[1672878383749,16.91273896,13.335,13.332,14.88]
[1672878384592,16.91273896,13.335,13.334,14.88]
[1672878385850,0.06717338,13.338,13.334,52.391]
[1672878386167,0.06131461,13.341,13.337,10.0]
[1672878386377,10.0,13.343,13.337,10.0]
[1672878386798,10.0,13.343,13.336,14.88]
[1672878388903,16.91273896,13.337,13.336,14.88]
[1672878391848,16.91273896,13.337,13.333,10.0]
[1672878392046,16.91273896,13.337,13.336,14.88]
[1672878392684,0.06288659,13.341,13.336,14.88]
[1672878392996,0.06288659,13.341,13.339,14.88]
[1672878393212,16.91273896,13.344,13.34,10.0]
[1672878393837,16.91273896,13.344,13.339,14.88]
[1672878394259,16.91273896,13.344,13.334,10.0]
[1672878394260,16.91273896,13.344,13.337,14.88]
[1672878394683,10.0,13.343,13.337,14.88]
[1672878394888,9.93503193,13.343,13.337,14.88]
[1672878395411,9.93503193,13.343,13.334,10.0]
[1672878395629,9.93503193,13.343,13.337,14.88]
[1672878396680,9.93503193,13.343,13.335,14.88]
[1672878397303,9.93503193,13.343,13.334,14.88]
[1672878397517,16.91273896,13.335,13.334,14.88]
[1672878398988,10.0,13.334,13.327,14.88]
[1672878399198,10.0,13.334,13.328,10.0]
[1672878399827,16.98244497,13.335,13.328,10.0]
[1672878400248,16.98244497,13.335,13.328,24.88]
[1672878401089,16.98244497,13.335,13.328,14.88]
[1672878401500,0.06970601,13.335,13.328,14.88]
[1672878401711,26.91273896,13.334,13.327,14.88]
[1672878403608,26.91273896,13.334,13.325,14.88]
[1672878403816,26.97307196,13.334,13.325,14.88]
[1672878404348,26.97307196,13.334,13.325,14.72928676]
[1672878404863,26.97307196,13.334,13.323,14.88]
[1672878405078,14.94444211,13.333,13.322,14.88]
[1672878405395,10.0,13.332,13.322,14.88]
[1672878405599,16.91273896,13.324,13.322,14.88]
[1672878406974,10.0639011,13.328,13.322,14.88]
[1672878407180,16.91273896,13.324,13.322,14.88]
[1672878415799,10.0639011,13.328,13.322,52.424]
[1672878416116,16.91273896,13.324,13.322,52.424]
[1672878417687,16.91273896,13.324,13.322,14.88]
[1672878417900,16.68086218,13.324,13.322,14.88]
[1672878420313,16.68086218,13.324,13.318,14.88]
[1672878420526,16.68086218,13.324,13.316,14.88]
[1672878420735,16.68086218,13.324,13.315,14.88]
[1672878420946,0.06334557,13.324,13.315,14.88]
[1672878421151,16.68086218,13.316,13.315,14.88]
[1672878421790,16.68086218,13.316,13.309,14.88]
[1672878421994,0.06190267,13.32,13.309,14.88]
[1672878421995,0.06440166,13.317,13.309,14.88]
[1672878422198,16.68086218,13.314,13.309,14.88]
[1672878422619,0.06440166,13.317,13.307,14.88]
[1672878422832,16.68086218,13.314,13.305,14.88]
[1672878423050,16.74106887,13.314,13.308,7.49]
[1672878423264,10.0,13.313,13.308,7.49]
[1672878424203,16.74106887,13.314,13.31,7.49]
[1672878424624,16.74106887,13.314,13.312,7.49]
[1672878424834,16.68086218,13.314,13.312,7.49]
[1672878426088,16.68086218,13.314,13.313,7.42]
[1672878426508,16.68086218,13.314,13.313,44.99]
[1672878427348,0.06196945,13.318,13.313,44.99]
[1672878427349,0.06196945,13.318,13.314,10.0]
[1672878427563,0.00196945,13.318,13.316,17.42]
[1672878427773,16.68086218,13.324,13.317,7.49]
[1672878427980,16.68086218,13.324,13.32,7.42]
[1672878429775,0.06144147,13.327,13.324,10.0]
[1672878430090,10.06743088,13.33,13.325,7.49]
[1672878430295,10.0,13.33,13.325,7.49]
[1672878430827,10.06637144,13.332,13.325,7.49]
[1672878431030,10.06637144,13.332,13.323,7.56088532]
[1672878432717,7.44,13.331,13.323,0.07088532]
[1672878432927,10.0,13.33,13.323,0.07088532]
[1672878433346,7.44,13.329,13.323,0.07088532]
[1672878433559,7.45,13.325,13.315,17.49]
[1672878433765,10.0,13.324,13.315,7.49]
[1672878434497,10.06890818,13.324,13.315,7.49]
[1672878434708,17.50890818,13.324,13.314,7.49]
[1672878434918,17.50572533,13.324,13.314,7.49]
[1672878438505,10.06572533,13.324,13.316,7.42]
[1672878438712,55.56822533,13.324,13.316,7.42]
[1672878439344,45.56822533,13.324,13.316,7.42]
[1672878440816,10.0,13.323,13.316,7.42]
[1672878441656,17.49,13.323,13.313,7.49]
[1672878441970,61.72546917,13.323,13.313,7.49]
[1672878442388,54.23546917,13.323,13.314,7.49]
[1672878442912,44.23546917,13.323,13.315,10.0]
[1672878443232,44.23546917,13.323,13.315,24.91]
[1672878443859,44.23546917,13.323,13.317,14.91]
[1672878446386,0.06566917,13.323,13.32,14.91]
[1672878446587,0.06093231,13.326,13.321,10.0]
[1672878446804,10.06907227,13.328,13.321,10.0]
[1672878447015,10.06907227,13.328,13.32,14.91]
[1672878447434,9.8679903,13.328,13.321,10.0]
[1672878448069,9.8679903,13.328,13.32,24.91]
[1672878448592,9.8679903,13.328,13.32,62.46]
[1672878449229,9.8679903,13.328,13.32,52.46]
[1672878449438,9.8679903,13.328,13.32,14.91]
[1672878452279,43.24297132,13.329,13.32,14.91]
[1672878454382,43.24297132,13.329,13.322,14.97]
[1672878454593,43.24297132,13.329,13.323,10.0]
[1672878455957,43.24297132,13.329,13.322,14.94]
[1672878458791,43.24297132,13.329,13.323,10.0]
[1672878459420,43.24297132,13.329,13.324,14.94]
[1672878459630,43.24297132,13.329,13.325,10.0]
[1672878459842,0.06257132,13.329,13.325,10.0]
[1672878461215,54.9407,13.334,13.329,0.1065684]
[1672878462156,44.9407,13.334,13.329,0.1065684]
[1672878474034,44.75712021,13.334,13.329,0.1065684]
[1672878479077,10.0,13.333,13.329,0.01704868]
[1672878482758,14.97,13.331,13.329,0.01704868]
[1672878482967,10.0,13.33,13.317,14.94]
[1672878483181,14.89,13.329,13.318,10.0]
[1672878483386,10.0,13.328,13.318,10.0]
[1672878483600,10.0,13.328,13.319,14.97]
[1672878483808,10.0,13.33,13.32,10.0]
[1672878484018,0.06513115,13.329,13.32,10.06239955]
[1672878484443,0.06513115,13.329,13.321,14.91]
[1672878484756,0.06513115,13.329,13.322,10.0]
[1672878485170,0.06513115,13.329,13.321,14.91]
[1672878486432,50.0,13.326,13.32,0.06239955]
[1672878486646,10.0,13.325,13.32,0.06239955]
[1672878496523,9.77719111,13.325,13.32,0.06239955]
[1672878497574,9.77719111,13.325,13.315,24.91]
[1672878497784,9.77719111,13.325,13.314,14.94]
[1672878497996,9.77719111,13.325,13.315,10.0]
[1672878498630,9.84061707,13.325,13.315,10.0]
[1672878499153,9.84061707,13.325,13.316,14.91]
[1672878499357,9.84061707,13.325,13.317,10.0]
[1672878500934,9.84061707,13.325,13.316,14.91]
[1672878501569,0.06342596,13.325,13.317,10.0]
[1672878502305,10.06342596,13.325,13.317,10.0]
[1672878502618,10.06342596,13.325,13.316,14.91]
[1672878503253,10.06342596,13.325,13.317,7.48]
[1672878506085,17.49342596,13.325,13.315,7.48]
[1672878506610,73.78342596,13.325,13.315,7.48]
[1672878506819,17.49342596,13.325,13.315,7.48]
[1672878507453,7.45,13.323,13.314,7.42]
[1672878507661,10.0,13.322,13.314,7.42]
[1672878507971,7.45,13.321,13.312,7.48]
[1672878508180,10.0,13.32,13.312,7.48]
[1672878511448,7.51267338,13.321,13.312,7.48]
[1672878512393,7.35956531,13.321,13.312,7.48]
[1672878513548,0.06267338,13.321,13.313,7.48]
[1672878518171,0.06267338,13.321,13.314,7.48]
[1672878525844,45.4087,13.322,13.321,0.06538837]
[1672878531199,10.06173808,13.326,13.321,0.06538837]
[1672878531200,0.06173808,13.326,13.321,0.06538837]
[1672878531418,0.06173808,13.326,13.321,7.49538837]
[1672878532886,0.06173808,13.326,13.321,7.42203422]
[1672878536350,0.06173808,13.326,13.32,7.42]
[1672878537818,0.06173808,13.326,13.318,7.48]
[1672878538032,10.06173808,13.326,13.318,7.48]
[1672878540557,17.51173808,13.326,13.317,0.06118898]
[1672878543914,17.51173808,13.326,13.313,7.47]
[1672878543915,7.42,13.322,13.313,7.47]
[1672878544128,17.43,13.321,13.311,7.43]
[1672878544341,10.0,13.32,13.311,7.43]
[1672878544964,10.06606248,13.32,13.311,7.43]
[1672878547699,7.45,13.319,13.309,10.0]
[1672878547911,10.0,13.318,13.308,7.43]
[1672878552843,7.45,13.315,13.305,7.48]
[1672878553059,10.0,13.314,13.305,7.48]
[1672878554529,17.45,13.314,13.303,7.42]
[1672878554734,7.43,13.31,13.3,45.085]
[1672878554949,10.0,13.309,13.3,45.085]
[1672878556848,10.0,13.309,13.3,7.48]
[1672878557163,7.49789958,13.31,13.3,7.48]
[1672878558111,7.49789958,13.31,13.3,45.085]
[1672878558527,7.49789958,13.31,13.301,10.0]
[1672878559166,0.06789958,13.31,13.305,7.42]
[1672878559362,0.06789958,13.31,13.306,10.0]
[1672878559572,7.45,13.315,13.31,0.09472724]
[1672878559790,44.0214,13.316,13.31,0.09472724]
[1672878560316,7.45,13.323,13.313,7.47]
[1672878560528,54.0214,13.322,13.313,7.47]
[1672878560846,10.0,13.321,13.313,7.53984192]
[1672878561047,10.0,13.321,13.313,0.06984192]
[1672878564093,7.45,13.316,13.313,0.00084192]
[1672878564309,7.45,13.314,13.303,10.0]
[1672878564522,7.43,13.312,13.302,7.47]
[1672878565146,7.49022531,13.312,13.302,7.47]
[1672878565879,37.576,13.311,13.302,7.47]
[1672878566089,112.729,13.311,13.304,7.48]
[1672878566301,10.0,13.31,13.304,7.48]
[1672878566615,10.0,13.308,13.304,7.48]
[1672878567031,37.583,13.309,13.304,7.48]
[1672878567242,37.587,13.307,13.304,7.48]
[1672878567770,0.06022531,13.312,13.306,45.059]
[1672878567980,0.06238885,13.314,13.307,10.0]
[1672878570504,0.06238885,13.314,13.306,10.0]
[1672878571032,0.06238885,13.314,13.305,14.99]
[1672878572293,14.99,13.312,13.301,24.99]
[1672878572501,10.0638745,13.311,13.301,24.99]
[1672878575131,0.0638745,13.311,13.301,24.99]
[1672878575657,10.0638745,13.311,13.301,24.99]
[1672878576597,0.0638745,13.311,13.301,24.99]
[1672878578072,56.0507,13.312,13.311,0.06972277]
[1672878580907,15.05329751,13.316,13.311,0.06972277]
[1672878581117,60.29689751,13.316,13.311,0.06972277]
[1672878583750,0.06329751,13.316,13.311,0.06972277]
[1672878584381,0.06329751,13.316,13.311,10.06972277]
[1672878585536,0.06329751,13.316,13.311,47.64472277]
[1672878586589,0.06329751,13.316,13.311,62.63472277]
[1672878588061,0.06329751,13.316,13.311,25.05972277]
[1672878588368,0.06329751,13.316,13.311,10.06972277]
[1672878588583,0.06329751,13.316,13.311,0.06972277]
[1672878592258,50.0,13.317,13.316,0.11546802]
[1672878592898,10.0,13.316,13.311,0.06972277]
[1672878593838,60.0,13.317,13.311,0.06972277]
[1672878594677,50.0,13.317,13.311,0.06972277]
[1672878602669,45.54450725,13.318,13.311,0.06972277]
[1672878604248,50.0,13.317,13.311,0.06972277]
[1672878604457,10.0,13.316,13.311,0.06972277]
[1672878604877,50.0,13.317,13.311,0.06972277]
[1672878606241,9.77616698,13.316,13.311,0.06972277]
[1672878607611,60.0,13.317,13.311,0.06972277]
[1672878607926,112.698,13.315,13.311,0.06972277]
[1672878608137,10.0,13.314,13.311,0.06972277]
[1672878608446,37.57,13.313,13.311,0.06972277]
[1672878608662,75.17870725,13.318,13.312,14.99]
[1672878609599,75.17870725,13.318,13.312,52.562]
[1672878612235,75.17870725,13.318,13.312,14.99]
[1672878613387,37.561,13.317,13.312,14.99]
[1672878613601,10.0,13.316,13.311,0.06972277]
[1672878613807,75.13,13.315,13.311,0.06972277]
[1672878614230,10.0,13.314,13.311,0.06972277]
[1672878614441,112.71,13.313,13.311,0.06972277]
[1672878614651,10.0,13.312,13.311,0.06972277]
[1672878615808,37.57,13.313,13.311,0.06972277]
[1672878616115,37.573,13.312,13.311,0.06972277]
[1672878618433,37.573,13.312,13.306,0.06564338]
[1672878618434,10.06,13.311,13.306,0.06564338]
[1672878618643,112.74,13.31,13.304,10.06191407]
[1672878618852,10.0,13.309,13.304,10.0]
[1672878619067,10.0,13.309,13.303,10.0]
[1672878619590,112.756,13.308,13.302,25.05406666]
[1672878619899,10.0,13.307,13.302,15.05406666]
[1672878620325,37.591,13.306,13.302,15.05406666]
[1672878620529,10.0,13.305,13.302,15.05406666]
[1672878620743,10.0,13.305,13.302,14.99]
[1672878621377,10.0,13.307,13.302,14.99]
[1672878622004,37.595,13.304,13.302,14.99]
[1672878622214,10.0,13.303,13.302,14.99]
[1672878622635,37.598,13.303,13.302,14.99]
[1672878626938,14.99,13.302,13.299,15.05758957]
[1672878627154,37.604,13.301,13.299,14.99]
[1672878627468,10.0,13.3,13.299,14.99]
[1672878627678,14.99,13.302,13.299,14.99]
[1672878628941,37.607,13.3,13.299,14.99]
[1672878631460,37.607,13.3,13.299,0.0016]
[1672878631669,10.0,13.299,13.293,14.99]
[1672878631881,37.615,13.298,13.294,50.0]
[1672878632617,37.615,13.298,13.294,87.623]
[1672878633460,37.615,13.298,13.294,52.613]
[1672878634297,37.607,13.3,13.295,10.0]
[1672878634508,0.06789676,13.301,13.297,14.96]
[1672878634719,0.06789676,13.301,13.298,10.0]
[1672878634928,75.26122554,13.304,13.298,10.0]
[1672878635139,37.605,13.301,13.298,10.0]
[1672878635456,37.605,13.301,13.297,14.96]
[1672878635872,37.605,13.301,13.297,52.574]
[1672878636189,37.605,13.301,13.297,14.96]
[1672878637138,0.06422554,13.304,13.297,14.96]
[1672878637349,37.598,13.303,13.299,14.99]
[1672878637559,0.06422554,13.304,13.301,14.99]
[1672878637872,37.596,13.304,13.302,10.0]
[1672878638397,37.596,13.304,13.301,14.99]
[1672878639134,112.787,13.304,13.301,14.99]
[1672878639765,0.07007716,13.307,13.303,14.99]
[1672878639978,44.6375,13.313,13.302,10.0]
[1672878639979,10.0,13.312,13.305,14.96]
[1672878641133,44.70608179,13.313,13.305,14.96]
[1672878642717,10.0,13.312,13.305,14.96]
[1672878643449,10.0,13.312,13.304,0.06064512]
[1672878643450,0.06858179,13.313,13.31,14.99]
[1672878643665,0.06967542,13.316,13.311,10.0]
[1672878643976,0.06286208,13.318,13.311,10.0]
[1672878644179,0.06286208,13.318,13.31,14.99]
[1672878650382,0.06286208,13.318,13.309,0.06712564]
[1672878650593,10.0,13.316,13.309,0.06712564]
[1672878652281,14.99,13.314,13.309,2.564e-05]
[1672878652491,10.0,13.313,13.302,14.96]
[1672878653436,0.06843926,13.312,13.303,0.06202193]
[1672878653649,0.06843926,13.312,13.303,10.06202193]
[1672878654380,0.06843926,13.312,13.303,0.06202193]
[1672878656797,0.06843926,13.312,13.304,14.99]
[1672878657005,0.06843926,13.312,13.305,10.0]
[1672878659635,0.06843926,13.312,13.304,14.99]
[1672878666365,10.0,13.313,13.312,0.0823585]
[1672878666573,10.0,13.313,13.305,10.0]
[1672878666783,10.0,13.313,13.304,14.99]
[1672878667520,10.0659247,13.313,13.304,15.05311321]
[1672878670675,0.0659247,13.313,13.304,15.05311321]
[1672878678775,15.0559247,13.313,13.304,0.06311321]
[1672878679086,10.0,13.312,13.304,0.06311321]
[1672878679507,52.0815,13.312,13.304,0.06311321]
[1672878683397,41.4492,13.311,13.304,0.06311321]
[1672878683709,10.0,13.31,13.304,0.06311321]
[1672878685282,41.4492,13.311,13.304,0.06311321]
[1672878685498,41.25519862,13.311,13.307,7.42]
[1672878685704,0.0659247,13.313,13.307,7.42]
[1672878685913,0.0659247,13.313,13.308,7.5]
[1672878686125,0.0659247,13.313,13.309,10.0]
[1672878688338,7.46,13.323,13.312,7.5]
[1672878688551,7.46,13.323,13.313,7.5]
[1672878689492,7.52838458,13.323,13.313,7.56044775]
[1672878691165,10.0,13.322,13.313,7.56044775]
[1672878693694,17.52838458,13.323,13.313,7.56044775]
[1672878696323,10.0,13.322,13.313,7.56044775]
[1672878697584,10.0,13.322,13.313,7.48662213]
[1672878702207,10.06838458,13.323,13.313,7.48662213]
[1672878702417,0.06838458,13.323,13.317,7.48]
[1672878705258,0.06838458,13.323,13.318,7.5]
[1672878708200,0.06838458,13.323,13.317,14.9]
[1672878710199,0.00561411,13.323,13.318,10.0]
[1672878715760,0.00561411,13.323,13.32,14.81]
[1672878715967,0.06800159,13.326,13.321,10.0]
[1672878716180,10.0,13.327,13.321,10.0]
[1672878717237,10.0,13.327,13.32,14.81]
[1672878719236,679.55116691,13.328,13.32,14.81]
[1672878720283,10.0,13.327,13.32,14.81]
[1672878723228,45.55116691,13.328,13.32,14.81]
[1672878723756,95.55116691,13.328,13.32,14.81]
[1672878726167,45.55116691,13.328,13.32,14.81]
[1672878726483,95.55116691,13.328,13.32,14.81]
[1672878730056,50.06676691,13.328,13.32,14.81]
[1672878732370,0.06676691,13.328,13.32,14.81]
[1672878732786,50.06676691,13.328,13.32,14.81]
[1672878736051,10.0,13.327,13.32,14.81]
[1672878737313,0.06676691,13.328,13.324,14.81]
[1672878737520,0.06676691,13.328,13.327,0.08451721]
[1672878737837,45.0316,13.331,13.327,0.08451721]
[1672878739939,0.0634406,13.332,13.327,0.08451721]
[1672878742461,0.00158127,13.332,13.327,0.08451721]
[1672878744765,0.00158127,13.332,13.327,10.08451721]
[1672878744988,0.00158127,13.332,13.331,14.9]
[1672878745191,0.06599816,13.336,13.332,10.0]
[1672878745399,0.06526076,13.339,13.335,14.95]
[1672878745611,0.06294484,13.342,13.335,14.95]
[1672878747288,0.06294484,13.342,13.334,0.06604301]
[1672878748028,0.06294484,13.342,13.334,7.52604301]
[1672878748866,0.06294484,13.342,13.336,7.46]
[1672878751709,0.06294484,13.342,13.34,7.46]
[1672878752025,0.06510805,13.346,13.34,7.46]
[1672878753489,0.06510805,13.346,13.338,7.51582127]
[1672878753705,7.46,13.342,13.338,0.06582127]
[1672878753911,7.46,13.34,13.335,0.07072512]
[1672878754126,7.46,13.336,13.327,0.08451721]
[1672878754336,10.0,13.335,13.327,0.08451721]
[1672878755489,52.3901,13.335,13.327,0.08451721]
[1672878757803,52.3901,13.335,13.327,7.54451721]
[1672878758956,52.3901,13.335,13.327,0.08451721]
[1672878759168,52.3901,13.335,13.327,7.54451721]
[1672878760324,52.3901,13.335,13.316,7.46]
[1672878760325,7.43,13.328,13.316,7.46]
[1672878760641,50.0,13.329,13.309,75.159]
[1672878760642,7.44,13.323,13.314,7.46]
[1672878761165,17.44,13.327,13.317,7.46]
[1672878761369,17.50799096,13.327,13.317,7.53083491]
[1672878766209,61.73439096,13.327,13.317,7.53083491]
[1672878768098,54.29439096,13.327,13.317,0.07083491]
[1672878771571,0.12469018,13.317,13.316,14.86]
[1672878776299,0.12469018,13.317,13.312,0.06247455]
[1672878781025,0.12469018,13.317,13.312,10.06247455]
[1672878781235,0.12469018,13.317,13.312,0.06247455]
[1672878784285,10.12469018,13.317,13.312,0.06247455]
[1672878784700,14.93,13.315,13.303,14.97]
[1672878784912,10.0,13.312,13.302,10.0]
[1672878785858,10.06064541,13.312,13.302,10.06371693]
[1672878787018,0.06064541,13.312,13.302,10.06371693]
[1672878788172,10.06064541,13.312,13.302,10.06371693]
[1672878788386,10.06064541,13.312,13.302,0.06371693]
[1672878791958,14.93,13.311,13.302,0.06371693]
[1672878792169,66.35,13.31,13.302,0.06371693]
[1672878792373,14.97,13.309,13.302,0.06371693]
[1672878792588,10.0,13.308,13.302,0.06371693]
[1672878793959,14.97,13.309,13.302,0.06371693]
[1672878794267,10.0,13.31,13.302,0.06371693]
[1672878794900,56.40064541,13.312,13.302,0.06371693]
[1672878795113,0.06064541,13.312,13.304,14.86]
[1672878795427,0.06064541,13.312,13.305,10.0]
[1672878795951,0.06064541,13.312,13.307,10.0]
[1672878798688,0.06064541,13.312,13.306,14.97]
[1672878799528,41.126,13.313,13.312,0.07166862]
[1672878808356,10.0,13.312,13.308,0.07099211]
[1672878811195,41.126,13.313,13.308,0.07099211]
[1672878812667,10.0,13.312,13.308,0.07099211]
[1672878814241,41.126,13.313,13.308,0.07099211]
[1672878816973,10.0,13.312,13.308,9.211e-05]
[1672878818969,66.056,13.313,13.308,9.211e-05]
[1672878819707,10.0,13.312,13.308,9.211e-05]
[1672878826431,51.126,13.313,13.308,9.211e-05]
[1672878826847,41.126,13.313,13.308,9.211e-05]
[1672878827800,10.0,13.312,13.308,9.211e-05]
[1672878831788,9.81529234,13.312,13.308,9.211e-05]
[1672878835575,41.126,13.313,13.308,9.211e-05]
[1672878836631,10.0,13.312,13.308,9.211e-05]
[1672878841139,7.5,13.311,13.308,9.211e-05]
[1672878841355,10.0,13.312,13.296,60.0]
[1672878841356,7.5,13.309,13.305,0.07114052]
[1672878841565,10.0,13.308,13.302,0.06901346]
[1672878842291,7.5,13.306,13.296,17.43]
[1672878842620,7.5,13.304,13.295,10.0]
[1672878843140,7.5,13.304,13.294,7.42]
[1672878843351,7.5634888,13.304,13.294,7.42]
[1672878844495,0.0634888,13.304,13.294,7.42]
[1672878845766,0.0634888,13.304,13.297,7.5]
[1672878854806,10.0,13.306,13.304,0.11355588]
[1672878855538,10.0,13.306,13.297,7.5]
[1672878855749,10.06345344,13.306,13.297,7.5706823]
[1672878868575,9.97299026,13.306,13.297,7.5706823]
[1672878868782,17.47299026,13.306,13.297,7.5706823]
[1672878875935,17.47299026,13.306,13.279,30.07]
[1672878876142,7.5,13.298,13.289,7.43]
[1672878876357,17.45,13.297,13.287,7.5]
[1672878876777,10.0,13.296,13.287,7.37982021]
[1672878877095,10.07038016,13.296,13.287,7.37982021]
[1672878877514,10.0,13.292,13.284,7.48]
[1672878880356,7.45,13.291,13.281,17.48]
[1672878880565,7.5,13.289,13.28,7.43]
[1672878880878,17.45,13.288,13.278,17.48]
[1672878881083,7.5,13.286,13.276,7.42]
[1672878881399,10.0,13.285,13.276,7.42]
[1672878881714,0.06602784,13.286,13.28,7.43]
[1672878881933,0.06602784,13.286,13.277,10.0]
[1672878881934,0.06602784,13.286,13.285,7.42]
[1672878882141,0.06872878,13.29,13.285,7.42]
[1672878882355,0.06154273,13.292,13.285,7.42]
[1672878885711,0.06154273,13.292,13.284,7.45]
[1672878886132,10.06154273,13.292,13.284,7.45]
[1672878888450,7.5,13.291,13.282,7.5]
[1672878888765,10.0,13.29,13.282,7.5]
[1672878890236,17.5,13.29,13.28,7.48]
[1672878890446,61.95700607,13.29,13.28,7.48]
[1672878890762,61.87195492,13.29,13.28,7.48]
[1672878891604,44.45700607,13.29,13.282,7.42]
[1672878891815,0.06360607,13.29,13.283,7.45]
[1672878892134,0.06360607,13.29,13.285,7.42]
[1672878892443,0.06360607,13.29,13.286,10.0]
[1672878893285,0.06360607,13.29,13.287,7.42]
[1672878893498,0.06149909,13.293,13.288,10.0]
[1672878893711,0.06052778,13.295,13.288,10.0]
[1672878895285,0.06052778,13.295,13.289,7.45]
[1672878895486,0.06052778,13.295,13.29,10.0]
[1672878896542,0.06052778,13.295,13.289,7.45]
[1672878898646,0.06052778,13.295,13.287,7.5]
[1672878903594,7.5,13.296,13.295,0.0492212]
[1672878904220,51.669,13.3,13.295,0.0492212]
[1672878906214,10.0,13.299,13.295,0.0492212]
[1672878906431,7.5,13.298,13.295,0.0492212]
[1672878906639,10.0,13.297,13.295,0.0492212]
[1672878912734,10.0,13.297,13.288,10.0]
[1672878912951,7.5,13.294,13.285,7.45]
[1672878915260,7.56985561,13.294,13.285,7.45]
[1672878925557,7.45683945,13.294,13.285,7.45]
[1672878929241,7.45,13.291,13.282,7.5]
[1672878929439,7.5,13.29,13.281,7.5]
[1672878929654,10.0,13.289,13.281,7.5]
[1672878930184,7.45,13.288,13.279,7.48]